﻿Body Name,Body,Transaction Date,Value,Supplier,Description,Purchase Type,Cost Center,Department,Section
South Ribble Council,http://Statistics.Data.gov.uk\Doc\Local Authority\30UN,15/10/2021,-£458.40,Ramada,adjusting error for full period of stay NAME REDACTED - £229.20 already accounted for separately minus figure to balance - done wrong way so,Accomodat,124050,COMU,JBC
South Ribble Council,http://Statistics.Data.gov.uk\Doc\Local Authority\30UN,15/10/2021,£0.10,Ramada,10p adjustment,Accomodat,124050,COMU,JBC
South Ribble Council,http://Statistics.Data.gov.uk\Doc\Local Authority\30UN,15/10/2021,£229.10,Ramada,NAME REDACTED mobility room at Ramada Chorley South 15-18.10.2021,Accomodat,124050,COMU,JBC
South Ribble Council,http://Statistics.Data.gov.uk\Doc\Local Authority\30UN,15/10/2021,£229.20,Ramada,adjusting error for full period of stay NAME REDACTED - £229.20 already accounted for separately minus figure to balance,Accomodat,124050,COMU,JBC
South Ribble Council,http://Statistics.Data.gov.uk\Doc\Local Authority\30UN,15/10/2021,"£1,651.50",Ramada,Ramada Chorley South NAME REDACTED 15.10.21 - 7.11.21 x 24 nights B&B,Accomodat,124050,COMU,JBC
South Ribble Council,http://Statistics.Data.gov.uk\Doc\Local Authority\30UN,27/10/2021,£225.00,CLARE,Claremont Hotel NAMES REDACTED cont placement 15-19.10.2021 now ended £45/n x 5 nights,Accomodat,124050,COMU,JBC
South Ribble Council,http://Statistics.Data.gov.uk\Doc\Local Authority\30UN,11/11/2021,-£90.00,claremo,NAME REDACTED 11.11.21 taken off NAME REDACTED card - this transaction cleared,Accomodat,124050,COMU,JBC
South Ribble Council,http://Statistics.Data.gov.uk\Doc\Local Authority\30UN,11/11/2021,£90.00,CLARE,NAME REDACTED initial placement x 2 nights 11-12.10.2021 £45/n Claremont Hotel,Accomodat,124050,COMU,JBC
South Ribble Council,http://Statistics.Data.gov.uk\Doc\Local Authority\30UN,01/12/2021,£95.00,Holiday I,Holiday Inn Preston Placement NAME REDACTED 1.12.2021 placed under swep,Accomodat,124250,COMU,JBC
South Ribble Council,http://Statistics.Data.gov.uk\Doc\Local Authority\30UN,02/12/2021,£66.00,Holiday I,Holiday Inn Express Walton Summitt NAME REDACTED 2.12.2021 x 1 night swep placement,Accomodat,124250,COMU,JBC
South Ribble Council,http://Statistics.Data.gov.uk\Doc\Local Authority\30UN,02/12/2021,£88.00,Holiday I,Holiday Inn Preston Central Ringway NAME REDACTED cont placement 2.12.2021 placed under swep,Accomodat,124250,COMU,JBC
South Ribble Council,http://Statistics.Data.gov.uk\Doc\Local Authority\30UN,14/12/2021,£108.00,Premier,Premier Inn chorley North NAME REDACTED x 1 night 14.12.21 NAME REDACTED x 1 night 14.12.21,Accomodat,124250,COMU,JBC
South Ribble Council,http://Statistics.Data.gov.uk\Doc\Local Authority\30UN,16/12/2021,£48.50,Premier,NAME REDACTED x 1 night Premier Inn Chorley North,Accomodat,124250,COMU,JBC
South Ribble Council,http://Statistics.Data.gov.uk\Doc\Local Authority\30UN,21/12/2021,£58.00,Premier,NAME REDACTED cold weather SWEP placement Premier Inn Preston South 21.12.2021 night by night,Accomodat,124250,COMU,JBC
South Ribble Council,http://Statistics.Data.gov.uk\Doc\Local Authority\30UN,22/12/2021,£76.00,Prmier I,NAME REDACTED Premier Inn Preston South s188 placement for 1 night B&B,Accomodat,124050,COMU,JBC
South Ribble Council,http://Statistics.Data.gov.uk\Doc\Local Authority\30UN,22/12/2021,£95.00,Premier,Placement NAMES REDACTED Premier Inn Preston South B&B cont placement 22.12.2021 x 1 night,Accomodat,124050,COMU,JBC
South Ribble Council,http://Statistics.Data.gov.uk\Doc\Local Authority\30UN,23/12/2021,£348.00,claremo,end of year accounting entry Claremont Hotel £348.00 23.12.2021 NAME REDACTED,Accomodat,124050,COMU,JBC
South Ribble Council,http://Statistics.Data.gov.uk\Doc\Local Authority\30UN,06/10/2021,£309.00,holiday i,NAME REDACTED 6-10/10/21 HIEx £309.00,Accomodat,124050,COMU,JBC
South Ribble Council,http://Statistics.Data.gov.uk\Doc\Local Authority\30UN,11/10/2021,£277.00,holiday i,NAME REDACTED HIEx 11-14.10.2021 agreed price £277.00,Accomodat,124050,COMU,JBC
South Ribble Council,http://Statistics.Data.gov.uk\Doc\Local Authority\30UN,20/10/2021,£315.00,claremo,end of year accounting entry awaiting copy invoice Claremont Hotel £315.00 NAME REDACTED,Accomodat,124050,COMU,JBC
South Ribble Council,http://Statistics.Data.gov.uk\Doc\Local Authority\30UN,08/11/2021,£506.00,holiday i,NAME REDACTED 8-14/11/21,Accomodat,124050,COMU,JBC
South Ribble Council,http://Statistics.Data.gov.uk\Doc\Local Authority\30UN,29/11/2021,£64.00,Ibis pres,NAME REDACTED Ibis hotel x 1 night 29.11.2021,Accomodat,124050,COMU,JBC
South Ribble Council,http://Statistics.Data.gov.uk\Doc\Local Authority\30UN,15/12/2021,£64.13,Leyland,NAME REDACTED Leyland Hotel Best Western 15.12.2021 x 1 night swep placement,Accomodat,124250,COMU,JBC
South Ribble Council,http://Statistics.Data.gov.uk\Doc\Local Authority\30UN,17/12/2021,£174.30,Leyland,NAME REDACTED Leyland Hotel Best Western 17-20.12.2021 x 3 nights swep placement,Accomodat,124250,COMU,JBC
South Ribble Council,http://Statistics.Data.gov.uk\Doc\Local Authority\30UN,17/12/2021,£197.50,Premier,Placement NAMES REDACTED Premier Inn Preston South B&B initial placement 17.12.2021 x 3 nights,Accomodat,124050,COMU,JBC
South Ribble Council,http://Statistics.Data.gov.uk\Doc\Local Authority\30UN,20/12/2021,-£126.00,premier i,duplicate entry PCC0001363 20.12.2021 NAME REDACTED 3 nights at premier inn south,Accomodat,124050,COMU,JBC
South Ribble Council,http://Statistics.Data.gov.uk\Doc\Local Authority\30UN,20/12/2021,£126.00,Premier,Placement NAMES REDACTED Premier Inn Preston South B&B contl placement 20.12.2021 x 2 nights,Accomodat,124050,COMU,JBC
South Ribble Council,http://Statistics.Data.gov.uk\Doc\Local Authority\30UN,20/12/2021,£126.00,Premier,NAME REDACTED cont placement Premier Inn Preston South 20-22.12.2021 x 3 nights B&B fixed prie,Accomodat,124050,COMU,JBC
South Ribble Council,http://Statistics.Data.gov.uk\Doc\Local Authority\30UN,20/12/2021,£348.00,claremo,end of year accounting entry awaiting copy invoice £348.00 NAME REDACTED,Accomodat,124050,COMU,JBC
South Ribble Council,http://Statistics.Data.gov.uk\Doc\Local Authority\30UN,01/10/2021,£315.00,CLARE,Claremont Hotel NAME REDACTED Cont placement 7 nights 1-7.9.2021,Accomodat,124050,COMU,JBC
South Ribble Council,http://Statistics.Data.gov.uk\Doc\Local Authority\30UN,11/10/2021,£90.00,claremo,NAME REDACTED 2 nights 11-12.10.21 Claremont hotel room 5,Accomodat,124050,COMU,JBC
South Ribble Council,http://Statistics.Data.gov.uk\Doc\Local Authority\30UN,01/11/2021,£450.00,CLARE,Claremont Hotel NAME REDACTED cont placement 1-10.11.2021 x 10nights £45/n,Accomodat,124050,COMU,JBC
South Ribble Council,http://Statistics.Data.gov.uk\Doc\Local Authority\30UN,25/11/2021,£69.50,premier i,NAME REDACTED x 1 night Premier Inn S 69.20,Accomodat,124050,COMU,JBC
South Ribble Council,http://Statistics.Data.gov.uk\Doc\Local Authority\30UN,03/12/2021,£113.00,Preston,NAME REDACTED Legacy Preston International Hotel 4.12.2021 x 1 night only,Accomodat,124250,COMU,JBC
South Ribble Council,http://Statistics.Data.gov.uk\Doc\Local Authority\30UN,03/12/2021,£192.00,holiday i,end of year accounting entry awaiting copy invoice 3.12.2021 £192.00 NAME REDACTED preston central NAME REDACTED,Accomodat,124050,COMU,JBC
South Ribble Council,http://Statistics.Data.gov.uk\Doc\Local Authority\30UN,07/12/2021,£76.00,Premier,Premier Inn Bolton NAME REDACTED swep placement 7.12.2021,Accomodat,124250,COMU,JBC
South Ribble Council,http://Statistics.Data.gov.uk\Doc\Local Authority\30UN,07/12/2021,£96.00,Premier,Premier Inn Fox St Preston NAME REDACTED accommodation 7.12.2021,Accomodat,124050,COMU,JBC
South Ribble Council,http://Statistics.Data.gov.uk\Doc\Local Authority\30UN,13/12/2021,£85.00,Best W,NAME REDACTED Best Western Leyland x 1 night £85.00,Accomodat,124250,COMU,JBC
South Ribble Council,http://Statistics.Data.gov.uk\Doc\Local Authority\30UN,13/12/2021,£348.00,claremo,end of year account entries awaiting copy invoice 13.12.21 £348.00 NAME REDACTED,Accomodat,124050,COMU,JBC
South Ribble Council,http://Statistics.Data.gov.uk\Doc\Local Authority\30UN,14/12/2021,-£156.50,Premier,3 x contra entries as claimed on NAME REDACTED cc re Premier Inn chorley North NAME REDACTED £48.50 16.12.2021 NAME REDACTED,Accomodat,124250,COMU,JBC
South Ribble Council,http://Statistics.Data.gov.uk\Doc\Local Authority\30UN,14/12/2021,£108.00,Premier,NAME REDACTED swep placement 14.12.2021 x 1 night NAME REDACTED swep Placement 14.12.2021 x 1 night,Accomodat,124250,COMU,JBC
South Ribble Council,http://Statistics.Data.gov.uk\Doc\Local Authority\30UN,16/12/2021,£48.50,Premier,NAME REDACTED Premier Inn Chorley North Whittle le Woods swep night by night 16.12.2021,Accomodat,124250,COMU,JBC
South Ribble Council,http://Statistics.Data.gov.uk\Doc\Local Authority\30UN,11/10/2021,£52.00,B&amp;,SOLAR LIGHTS PURCHASED ON BEHALF OF NAME REDACTED FOR HURST GRANGE COACH HOUSE,Store Purchase,174300,CDIG,JCD
South Ribble Council,http://Statistics.Data.gov.uk\Doc\Local Authority\30UN,21/10/2021,£277.50,DVLA,Road Tax October 2021 VIN REDACTED,Online Purchase,112100,CDIG,JCE
South Ribble Council,http://Statistics.Data.gov.uk\Doc\Local Authority\30UN,21/10/2021,£277.50,DVLA,Road Tax October 2021 - VIN REDACTED,Online Purchase,112100,CDIG,JCE
South Ribble Council,http://Statistics.Data.gov.uk\Doc\Local Authority\30UN,09/12/2021,£66.57,TESCO,26 x Diaries for Neighbourhood Services,Store Purchase,170100,CDIG,JCD
South Ribble Council,http://Statistics.Data.gov.uk\Doc\Local Authority\30UN,20/12/2021,£49.00,Premier,Hotel Room for One Night - Homeless Requested by NAME REDACTED Housing Options Officer,Accomodat,124250,CDIG,JCD
South Ribble Council,http://Statistics.Data.gov.uk\Doc\Local Authority\30UN,21/10/2021,£277.50,DVLA,Road tax Oct 2021 - VIN REDACTED,Online Purchase,173500,CDIG,JCE
South Ribble Council,http://Statistics.Data.gov.uk\Doc\Local Authority\30UN,21/10/2021,£277.50,DVLA,Road tax Oct 2021 - VIN REDACTED,Online Purchase,171600,CDIG,JCE
South Ribble Council,http://Statistics.Data.gov.uk\Doc\Local Authority\30UN,23/11/2021,£302.50,DVLA,Road tax VIN REDACTED - Nov 21,Online Purchase,172840,CDIG,JCE
South Ribble Council,http://Statistics.Data.gov.uk\Doc\Local Authority\30UN,17/12/2021,£153.75,DVLA,Road tax (6 months) VIN REDACTED - Dec 2021,Online Purchase,172300,CDIG,JCE
South Ribble Council,http://Statistics.Data.gov.uk\Doc\Local Authority\30UN,17/12/2021,£167.50,DVLA,Road Tax Dec - VIN REDACTED,Online Purchase,172400,CDIG,JCE
South Ribble Council,http://Statistics.Data.gov.uk\Doc\Local Authority\30UN,17/12/2021,£302.50,DVLA,Road tax Dec 21 - VIN REDACTED,Online Purchase,172810,CDIG,JCE
South Ribble Council,http://Statistics.Data.gov.uk\Doc\Local Authority\30UN,12/11/2021,£60.00,ROLAN,OUTDOOR LECTERN,Online Purchase,143750,CDIG,JCB
South Ribble Council,http://Statistics.Data.gov.uk\Doc\Local Authority\30UN,12/11/2021,£450.00,ROLAN,OUTDOOR LECTERN,Online Purchase,143750,CDIG,JCB
South Ribble Council,http://Statistics.Data.gov.uk\Doc\Local Authority\30UN,24/11/2021,£210.00,PITNEY,FRANKING MACHINE,Online Purchase,133000,CDIG,JCB
South Ribble Council,http://Statistics.Data.gov.uk\Doc\Local Authority\30UN,25/11/2021,£43.20,SKIDDL,300 PRINTED TICKETS,Online Purchase,114100,CDIG,JCB
South Ribble Council,http://Statistics.Data.gov.uk\Doc\Local Authority\30UN,09/12/2021,"£2,900.00",INFOR,DATA PROTECTION RENEWAL FEE,Online Purchase,133000,CDIG,JCB
South Ribble Council,http://Statistics.Data.gov.uk\Doc\Local Authority\30UN,01/10/2021,£21.45,Tesco,Items for food parcels,Store Purchase,101019,COMU,JBA
South Ribble Council,http://Statistics.Data.gov.uk\Doc\Local Authority\30UN,01/10/2021,£44.99,ARGOS,Items for Covid hub,Store Purchase,101019,COMU,JBA
South Ribble Council,http://Statistics.Data.gov.uk\Doc\Local Authority\30UN,05/10/2021,£4.80,Valley C,Refreshments for Hub meeting,Store Purchase,114800,COMU,JBA
South Ribble Council,http://Statistics.Data.gov.uk\Doc\Local Authority\30UN,05/10/2021,£5.00,Valley C,Refreshments for Hub meeting,Store Purchase,114800,COMU,JBA
South Ribble Council,http://Statistics.Data.gov.uk\Doc\Local Authority\30UN,05/10/2021,£7.55,Valley C,Refreshments for Hub meeting,Store Purchase,114800,COMU,JBA
South Ribble Council,http://Statistics.Data.gov.uk\Doc\Local Authority\30UN,05/10/2021,£10.20,Valley C,Refreshments for Hub meeting,Store Purchase,114800,COMU,JBA
South Ribble Council,http://Statistics.Data.gov.uk\Doc\Local Authority\30UN,05/10/2021,£66.12,Aldi,Items for food parcels for the Covid Hub,Store Purchase,101019,COMU,JBA
South Ribble Council,http://Statistics.Data.gov.uk\Doc\Local Authority\30UN,06/10/2021,£5.98,Tesco,Items for food parcels for Covid Hub,Store Purchase,101019,COMU,JBA
South Ribble Council,http://Statistics.Data.gov.uk\Doc\Local Authority\30UN,06/10/2021,£75.23,Aldi,Items for food parcels for Covid Hub,Store Purchase,101019,COMU,JBA
South Ribble Council,http://Statistics.Data.gov.uk\Doc\Local Authority\30UN,11/10/2021,£35.17,Aldi,Items for food parcels for Covid Hub,Store Purchase,101019,COMU,JBA
South Ribble Council,http://Statistics.Data.gov.uk\Doc\Local Authority\30UN,14/10/2021,£20.00,Old Oak,Gas Top Ups for the Covid Hub,Store Purchase,101019,COMU,JBA
South Ribble Council,http://Statistics.Data.gov.uk\Doc\Local Authority\30UN,15/10/2021,£101.89,Aldi,Items for food parcels for Covid Hub,Store Purchase,101019,COMU,JBA
South Ribble Council,http://Statistics.Data.gov.uk\Doc\Local Authority\30UN,19/10/2021,£13.01,Tesco,Items for food parcels for Covid Hub,Store Purchase,101019,COMU,JBA
South Ribble Council,http://Statistics.Data.gov.uk\Doc\Local Authority\30UN,19/10/2021,£14.39,Tesco,Refreshments for NAMES REDACTED Hub meeting,Store Purchase,114800,COMU,JBA
South Ribble Council,http://Statistics.Data.gov.uk\Doc\Local Authority\30UN,20/10/2021,£15.04,Morrison,Refreshments for Youth Council meeting,Store Purchase,114800,COMU,JBA
South Ribble Council,http://Statistics.Data.gov.uk\Doc\Local Authority\30UN,20/10/2021,£70.00,Screwfix,Shelving,Store Purchase,101019,COMU,JBA
South Ribble Council,http://Statistics.Data.gov.uk\Doc\Local Authority\30UN,20/10/2021,£71.43,Engravin,Plaque for bench NAME REDACTED including delivery,Online Purchase,114801,COMU,JBA
South Ribble Council,http://Statistics.Data.gov.uk\Doc\Local Authority\30UN,22/10/2021,£10.55,Morrison,Items for food parcels,Store Purchase,101019,COMU,JBA
South Ribble Council,http://Statistics.Data.gov.uk\Doc\Local Authority\30UN,22/10/2021,£179.99,Currys,Undercounter fridge,Online Purchase,114800,COMU,JBA
South Ribble Council,http://Statistics.Data.gov.uk\Doc\Local Authority\30UN,25/10/2021,£20.00,Utilita E,Gas and Electricity top up ref NAME REDACTED,Online Purchase,101019,COMU,JBA
South Ribble Council,http://Statistics.Data.gov.uk\Doc\Local Authority\30UN,28/10/2021,£3.90,Coop,Items for food parcels,Store Purchase,101019,COMU,JBA
South Ribble Council,http://Statistics.Data.gov.uk\Doc\Local Authority\30UN,28/10/2021,£6.26,Tesco,Items for food parcels,Store Purchase,101019,COMU,JBA
South Ribble Council,http://Statistics.Data.gov.uk\Doc\Local Authority\30UN,01/11/2021,£6.12,CandW,Cable ties,Store Purchase,114801,COMU,JBA
South Ribble Council,http://Statistics.Data.gov.uk\Doc\Local Authority\30UN,01/11/2021,£19.70,Tesco,Items for the youth council,Store Purchase,114870,COMU,JBA
South Ribble Council,http://Statistics.Data.gov.uk\Doc\Local Authority\30UN,04/11/2021,£28.95,Kukoon,Children`s rug for Lostock Hall Library Re-socialisation project,Online Purchase,114800,COMU,JBA
South Ribble Council,http://Statistics.Data.gov.uk\Doc\Local Authority\30UN,04/11/2021,£144.55,Aldi,Items for food parcel,Store Purchase,101019,COMU,JBA
South Ribble Council,http://Statistics.Data.gov.uk\Doc\Local Authority\30UN,04/11/2021,£163.60,tts,Children`s items for Lostock Hall Re-socialisation project,Online Purchase,114800,COMU,JBA
South Ribble Council,http://Statistics.Data.gov.uk\Doc\Local Authority\30UN,04/11/2021,£766.32,Manutan,Kitchen items and chairs for re-socialisation project Lostock Hall,Online Purchase,114800,COMU,JBA
South Ribble Council,http://Statistics.Data.gov.uk\Doc\Local Authority\30UN,05/11/2021,£4.27,Tesco,Items for food parcels,Store Purchase,101019,COMU,JBA
South Ribble Council,http://Statistics.Data.gov.uk\Doc\Local Authority\30UN,05/11/2021,£175.19,Display,Items for socialisation project for Lostock Hall Library,Online Purchase,114800,COMU,JBA
South Ribble Council,http://Statistics.Data.gov.uk\Doc\Local Authority\30UN,05/11/2021,£489.50,White R,"Items including badges, ribbons, cards, poster, banner, flag, including delivery",Online Purchase,170600,COMU,JBA
South Ribble Council,http://Statistics.Data.gov.uk\Doc\Local Authority\30UN,08/11/2021,£71.00,ARGOS,Items for Refugee Resettlement,Online Purchase,144200,COMU,JBA
South Ribble Council,http://Statistics.Data.gov.uk\Doc\Local Authority\30UN,09/11/2021,£2.25,Coop,Items for food parcels,Store Purchase,101019,COMU,JBA
South Ribble Council,http://Statistics.Data.gov.uk\Doc\Local Authority\30UN,09/11/2021,£154.74,Bigdug,Items for Boost Fund 1 - workbench and fixing and delivery,Online Purchase,114806,COMU,JBA
South Ribble Council,http://Statistics.Data.gov.uk\Doc\Local Authority\30UN,10/11/2021,£19.10,Tesco,Items for food parcels,Store Purchase,101019,COMU,JBA
South Ribble Council,http://Statistics.Data.gov.uk\Doc\Local Authority\30UN,11/11/2021,£122.49,Aldi,Items for food parcels,Store Purchase,101019,COMU,JBA
South Ribble Council,http://Statistics.Data.gov.uk\Doc\Local Authority\30UN,12/11/2021,£155.50,Gusto D,Items for Youth Council for trip,Store Purchase,114870,COMU,JBA
South Ribble Council,http://Statistics.Data.gov.uk\Doc\Local Authority\30UN,15/11/2021,-£530.40,Manutan,Items for Lostock Hall re socialisation project,Refund,114800,COMU,JBA
South Ribble Council,http://Statistics.Data.gov.uk\Doc\Local Authority\30UN,15/11/2021,£7.05,Tesco,Items for food parcels,Store Purchase,101019,COMU,JBA
South Ribble Council,http://Statistics.Data.gov.uk\Doc\Local Authority\30UN,15/11/2021,£11.48,Tesco,Items for food parcels,Store Purchase,101019,COMU,JBA
South Ribble Council,http://Statistics.Data.gov.uk\Doc\Local Authority\30UN,15/11/2021,£14.39,Tesco,Items for the Youth Council,Store Purchase,114870,COMU,JBA
South Ribble Council,http://Statistics.Data.gov.uk\Doc\Local Authority\30UN,15/11/2021,£53.03,Amazon,Items for Active Health,Online Purchase,113100,COMU,JBA
South Ribble Council,http://Statistics.Data.gov.uk\Doc\Local Authority\30UN,16/11/2021,£0.99,Spar,Items for food parcels,Store Purchase,101019,COMU,JBA
South Ribble Council,http://Statistics.Data.gov.uk\Doc\Local Authority\30UN,16/11/2021,£42.54,Tesco,Diesel for the van for deliveries and collections,Store Purchase,101019,COMU,JBA
South Ribble Council,http://Statistics.Data.gov.uk\Doc\Local Authority\30UN,16/11/2021,£162.00,BandM,Mince pies for all Xmas events and switch ons,Store Purchase,114800,COMU,JBA
South Ribble Council,http://Statistics.Data.gov.uk\Doc\Local Authority\30UN,17/11/2021,£14.40,Tesco,Items for White Ribbon event,Store Purchase,170600,COMU,JBA
South Ribble Council,http://Statistics.Data.gov.uk\Doc\Local Authority\30UN,17/11/2021,£37.50,BandM,Mince pies and biscuits for Xmas events and light switch ons,Store Purchase,114800,COMU,JBA
South Ribble Council,http://Statistics.Data.gov.uk\Doc\Local Authority\30UN,18/11/2021,£4.34,Spar,Items for food parcels,Store Purchase,101019,COMU,JBA
South Ribble Council,http://Statistics.Data.gov.uk\Doc\Local Authority\30UN,18/11/2021,£116.73,Aldi,Items for food parcels,Store Purchase,101019,COMU,JBA
South Ribble Council,http://Statistics.Data.gov.uk\Doc\Local Authority\30UN,19/11/2021,£6.50,Spar,Items for food parcels,Store Purchase,101019,COMU,JBA
South Ribble Council,http://Statistics.Data.gov.uk\Doc\Local Authority\30UN,22/11/2021,£3.06,Tesco,Items for food parcels,Store Purchase,101019,COMU,JBA
South Ribble Council,http://Statistics.Data.gov.uk\Doc\Local Authority\30UN,22/11/2021,£9.91,Tesco,Items for the Youth Council,Store Purchase,114870,COMU,JBA
South Ribble Council,http://Statistics.Data.gov.uk\Doc\Local Authority\30UN,23/11/2021,£247.80,BandM,Christmas items,Store Purchase,114800,COMU,JBA
South Ribble Council,http://Statistics.Data.gov.uk\Doc\Local Authority\30UN,24/11/2021,£15.00,Internati,Items for step up grant,Store Purchase,114840,COMU,JBA
South Ribble Council,http://Statistics.Data.gov.uk\Doc\Local Authority\30UN,24/11/2021,£20.00,Spar,Gas top up,Store Purchase,101019,COMU,JBA
South Ribble Council,http://Statistics.Data.gov.uk\Doc\Local Authority\30UN,24/11/2021,£20.00,Spar,Gas top up,Store Purchase,101019,COMU,JBA
South Ribble Council,http://Statistics.Data.gov.uk\Doc\Local Authority\30UN,24/11/2021,£22.04,Home B,Items for White Ribbon event,Store Purchase,170600,COMU,JBA
South Ribble Council,http://Statistics.Data.gov.uk\Doc\Local Authority\30UN,24/11/2021,£205.00,Leyland,Items for step up grant,Store Purchase,114840,COMU,JBA
South Ribble Council,http://Statistics.Data.gov.uk\Doc\Local Authority\30UN,25/11/2021,£7.15,Tesco,Items for white ribbon event,Store Purchase,170600,COMU,JBA
South Ribble Council,http://Statistics.Data.gov.uk\Doc\Local Authority\30UN,25/11/2021,£8.00,Sainsbu,Items for step up grant,Store Purchase,114840,COMU,JBA
South Ribble Council,http://Statistics.Data.gov.uk\Doc\Local Authority\30UN,25/11/2021,£41.25,Tesco,Items for step up grant,Store Purchase,114840,COMU,JBA
South Ribble Council,http://Statistics.Data.gov.uk\Doc\Local Authority\30UN,25/11/2021,£60.00,SQ Cind,Cupckaes for White Ribbon Day,Online Purchase,170600,COMU,JBA
South Ribble Council,http://Statistics.Data.gov.uk\Doc\Local Authority\30UN,29/11/2021,£31.99,Currys,Electric hot plate,Online Purchase,144200,COMU,JBA
South Ribble Council,http://Statistics.Data.gov.uk\Doc\Local Authority\30UN,29/11/2021,£140.09,Aldi,Items for the Hub for food parcels,Store Purchase,101019,COMU,JBA
South Ribble Council,http://Statistics.Data.gov.uk\Doc\Local Authority\30UN,29/11/2021,"£2,997.00",Powerh,Gym kit funded by OPCC grant,Online Purchase,170600,COMU,JBA
South Ribble Council,http://Statistics.Data.gov.uk\Doc\Local Authority\30UN,30/11/2021,£16.20,Tesco,Items for the Hub for food parcels,Store Purchase,101019,COMU,JBA
South Ribble Council,http://Statistics.Data.gov.uk\Doc\Local Authority\30UN,30/11/2021,£37.80,Tesco,Items for the Hub for food parcels,Store Purchase,101019,COMU,JBA
South Ribble Council,http://Statistics.Data.gov.uk\Doc\Local Authority\30UN,30/11/2021,£58.90,Tesco,Items for the step up grant,Store Purchase,114840,COMU,JBA
South Ribble Council,http://Statistics.Data.gov.uk\Doc\Local Authority\30UN,01/12/2021,£359.98,Currys,Fridges,Online Purchase,144200,COMU,JBA
South Ribble Council,http://Statistics.Data.gov.uk\Doc\Local Authority\30UN,02/12/2021,£10.70,Tesco,Items for the Hub for food parcels,Store Purchase,101019,COMU,JBA
South Ribble Council,http://Statistics.Data.gov.uk\Doc\Local Authority\30UN,02/12/2021,£20.00,Co-op,Gas top up,Store Purchase,101019,COMU,JBA
South Ribble Council,http://Statistics.Data.gov.uk\Doc\Local Authority\30UN,02/12/2021,£38.94,Gardner,Items for refugees homes,Store Purchase,144200,COMU,JBA
South Ribble Council,http://Statistics.Data.gov.uk\Doc\Local Authority\30UN,02/12/2021,£76.00,BandM,Items for Xmas events,Store Purchase,114800,COMU,JBA
South Ribble Council,http://Statistics.Data.gov.uk\Doc\Local Authority\30UN,02/12/2021,£111.00,ARGOS,Items for refugees homes,Online Purchase,144200,COMU,JBA
South Ribble Council,http://Statistics.Data.gov.uk\Doc\Local Authority\30UN,02/12/2021,£124.88,Lidl,Items for the Hub for food parcels,Store Purchase,101019,COMU,JBA
South Ribble Council,http://Statistics.Data.gov.uk\Doc\Local Authority\30UN,03/12/2021,£3.65,Sainsbu,Items for the hub for food parcels,Store Purchase,101019,COMU,JBA
South Ribble Council,http://Statistics.Data.gov.uk\Doc\Local Authority\30UN,03/12/2021,£9.98,The Ran,Items for the refugees homes,Store Purchase,144200,COMU,JBA
South Ribble Council,http://Statistics.Data.gov.uk\Doc\Local Authority\30UN,03/12/2021,£19.12,Tesco,Items for the Hub for food parcels,Store Purchase,101019,COMU,JBA
South Ribble Council,http://Statistics.Data.gov.uk\Doc\Local Authority\30UN,03/12/2021,£223.61,The Ran,Items for the refugees homes,Store Purchase,144200,COMU,JBA
South Ribble Council,http://Statistics.Data.gov.uk\Doc\Local Authority\30UN,07/12/2021,£9.72,Aldi,Food for the hub,Store Purchase,101019,COMU,JBA
South Ribble Council,http://Statistics.Data.gov.uk\Doc\Local Authority\30UN,08/12/2021,£9.18,Lidl,Food for the hub,Store Purchase,101019,COMU,JBA
South Ribble Council,http://Statistics.Data.gov.uk\Doc\Local Authority\30UN,08/12/2021,£65.00,ARGOS,Items for resettlement project,Online Purchase,144200,COMU,JBA
South Ribble Council,http://Statistics.Data.gov.uk\Doc\Local Authority\30UN,08/12/2021,£157.32,Lidl,Food for the hub,Store Purchase,101019,COMU,JBA
South Ribble Council,http://Statistics.Data.gov.uk\Doc\Local Authority\30UN,09/12/2021,£15.99,The Ran,Items for re settlement project,Store Purchase,144200,COMU,JBA
South Ribble Council,http://Statistics.Data.gov.uk\Doc\Local Authority\30UN,09/12/2021,£52.94,Gardner,Items for resettlement project,Store Purchase,144200,COMU,JBA
South Ribble Council,http://Statistics.Data.gov.uk\Doc\Local Authority\30UN,09/12/2021,£77.88,The Ran,Items for re settlement project,Store Purchase,144200,COMU,JBA
South Ribble Council,http://Statistics.Data.gov.uk\Doc\Local Authority\30UN,09/12/2021,£77.94,tts,Items for Lostock Hall re socialisaiton project,Online Purchase,114800,COMU,JBA
South Ribble Council,http://Statistics.Data.gov.uk\Doc\Local Authority\30UN,09/12/2021,£99.96,The Ran,Items for re settlement project,Store Purchase,144200,COMU,JBA
South Ribble Council,http://Statistics.Data.gov.uk\Doc\Local Authority\30UN,10/12/2021,£20.00,Spar,Utilities for covid hub,Store Purchase,101019,COMU,JBA
South Ribble Council,http://Statistics.Data.gov.uk\Doc\Local Authority\30UN,10/12/2021,£20.00,Spar,Utilities for covid hub,Store Purchase,101019,COMU,JBA
South Ribble Council,http://Statistics.Data.gov.uk\Doc\Local Authority\30UN,10/12/2021,£34.81,Amazon,Items for re settlement project,Online Purchase,144200,COMU,JBA
South Ribble Council,http://Statistics.Data.gov.uk\Doc\Local Authority\30UN,13/12/2021,£15.57,Tesco,Items for the hub,Store Purchase,101019,COMU,JBA
South Ribble Council,http://Statistics.Data.gov.uk\Doc\Local Authority\30UN,13/12/2021,£29.23,Tesco,Items for Youth Council work,Store Purchase,114870,COMU,JBA
South Ribble Council,http://Statistics.Data.gov.uk\Doc\Local Authority\30UN,13/12/2021,£29.23,Tesco,Items for youth council meeting,Store Purchase,114870,COMU,JBA
South Ribble Council,http://Statistics.Data.gov.uk\Doc\Local Authority\30UN,13/12/2021,£45.39,Amazon,Outfits for Elfs,Online Purchase,114850,COMU,JBA
South Ribble Council,http://Statistics.Data.gov.uk\Doc\Local Authority\30UN,14/12/2021,£150.00,St Cath,Furniture for refugees project,Store Purchase,144200,COMU,JBA
South Ribble Council,http://Statistics.Data.gov.uk\Doc\Local Authority\30UN,14/12/2021,£355.00,Leyland,Furniture for refugees project,Store Purchase,144200,COMU,JBA
South Ribble Council,http://Statistics.Data.gov.uk\Doc\Local Authority\30UN,15/12/2021,£46.66,The Ran,Bedding for refugees,Store Purchase,144200,COMU,JBA
South Ribble Council,http://Statistics.Data.gov.uk\Doc\Local Authority\30UN,15/12/2021,£48.99,ARGOS,Bedding for refugees project,Online Purchase,144200,COMU,JBA
South Ribble Council,http://Statistics.Data.gov.uk\Doc\Local Authority\30UN,16/12/2021,£0.28,Faceboo,Facebook work by Comms for boost,Online Purchase,124000,COMU,JBA
South Ribble Council,http://Statistics.Data.gov.uk\Doc\Local Authority\30UN,16/12/2021,£3.47,Faceboo,Black Friday Membership Deal promotion,Online Purchase,125410,COMU,JBA
South Ribble Council,http://Statistics.Data.gov.uk\Doc\Local Authority\30UN,16/12/2021,£3.52,Faceboo,Black Friday Membership deal promotion,Online Purchase,125410,COMU,JBA
South Ribble Council,http://Statistics.Data.gov.uk\Doc\Local Authority\30UN,16/12/2021,£4.80,Tesco,Items for food parcels for the hub,Store Purchase,101019,COMU,JBA
South Ribble Council,http://Statistics.Data.gov.uk\Doc\Local Authority\30UN,16/12/2021,£5.39,Faceboo,Join now play nothing promotion,Online Purchase,125410,COMU,JBA
South Ribble Council,http://Statistics.Data.gov.uk\Doc\Local Authority\30UN,16/12/2021,£7.34,Faceboo,Black Friday Membership deal promotion,Online Purchase,125410,COMU,JBA
South Ribble Council,http://Statistics.Data.gov.uk\Doc\Local Authority\30UN,16/12/2021,£7.45,Faceboo,Black Friday membership deal promotion,Online Purchase,125410,COMU,JBA
South Ribble Council,http://Statistics.Data.gov.uk\Doc\Local Authority\30UN,16/12/2021,£14.52,Faceboo,Black Friday Membership deal promotion,Online Purchase,125410,COMU,JBA
South Ribble Council,http://Statistics.Data.gov.uk\Doc\Local Authority\30UN,16/12/2021,£14.69,Faceboo,Black Friday Membership deal promotion,Online Purchase,125410,COMU,JBA
South Ribble Council,http://Statistics.Data.gov.uk\Doc\Local Authority\30UN,16/12/2021,£18.75,Morrison,Items for food parcels for Hub,Store Purchase,101019,COMU,JBA
South Ribble Council,http://Statistics.Data.gov.uk\Doc\Local Authority\30UN,16/12/2021,£107.67,Faceboo,Discover Christmas in South Ribble promotion work,Online Purchase,114610,COMU,JBA
South Ribble Council,http://Statistics.Data.gov.uk\Doc\Local Authority\30UN,16/12/2021,£200.00,Faceboo,Boost a winter warmth programme,Online Purchase,124000,COMU,JBA
South Ribble Council,http://Statistics.Data.gov.uk\Doc\Local Authority\30UN,17/12/2021,£20.00,British,Gas and electric for ADDRESS REDACTED,Online Purchase,101019,COMU,JBA
South Ribble Council,http://Statistics.Data.gov.uk\Doc\Local Authority\30UN,20/12/2021,£2.59,Lidl,Food items for hub,Store Purchase,101019,COMU,JBA
South Ribble Council,http://Statistics.Data.gov.uk\Doc\Local Authority\30UN,20/12/2021,£169.92,Lidl,Food items for hub,Store Purchase,101019,COMU,JBA
South Ribble Council,http://Statistics.Data.gov.uk\Doc\Local Authority\30UN,21/12/2021,£80.00,BandQ,Hub shelving unit,Online Purchase,101019,COMU,JBA
South Ribble Council,http://Statistics.Data.gov.uk\Doc\Local Authority\30UN,22/12/2021,£50.88,Tesco,Items for food parcels for hub,Store Purchase,101019,COMU,JBA
South Ribble Council,http://Statistics.Data.gov.uk\Doc\Local Authority\30UN,22/12/2021,£99.89,Lidl,Items for food parcels for hub,Store Purchase,101019,COMU,JBA
South Ribble Council,http://Statistics.Data.gov.uk\Doc\Local Authority\30UN,22/12/2021,£105.03,Aldi,Items for food parcels for hub,Store Purchase,101019,COMU,JBA
South Ribble Council,http://Statistics.Data.gov.uk\Doc\Local Authority\30UN,23/12/2021,£3.47,Faceboo,Join now pay nothing promotion work,Online Purchase,125410,COMU,JBA
South Ribble Council,http://Statistics.Data.gov.uk\Doc\Local Authority\30UN,23/12/2021,£4.04,Faceboo,Join now pay nothing promotion work,Online Purchase,125410,COMU,JBA
South Ribble Council,http://Statistics.Data.gov.uk\Doc\Local Authority\30UN,23/12/2021,£14.00,Faceboo,Enjoy Festive Fun promotion work,Online Purchase,114610,COMU,JBA
South Ribble Council,http://Statistics.Data.gov.uk\Doc\Local Authority\30UN,23/12/2021,£28.33,Faceboo,Discover Christmas in South Ribble,Online Purchase,114610,COMU,JBA
South Ribble Council,http://Statistics.Data.gov.uk\Doc\Local Authority\30UN,23/12/2021,£39.20,Faceboo,Share Your Views promotion work,Online Purchase,115600,COMU,JBA
South Ribble Council,http://Statistics.Data.gov.uk\Doc\Local Authority\30UN,23/12/2021,£44.70,Faceboo,Free children`s activities promotion,Online Purchase,114850,COMU,JBA
South Ribble Council,http://Statistics.Data.gov.uk\Doc\Local Authority\30UN,15/10/2021,£100.00,Faringto,NAME REDACTED hotel accommodation,Accomodat,113640,GOVE,JDG
South Ribble Council,http://Statistics.Data.gov.uk\Doc\Local Authority\30UN,15/10/2021,£471.00,Faringto,NAME REDACTED hotel accommodation,Accomodat,113640,GOVE,JDG
South Ribble Council,http://Statistics.Data.gov.uk\Doc\Local Authority\30UN,16/10/2021,£250.00,Cash,£200 to NAME REDACTED £50 to NAME REDACTED,Refund,113640,GOVE,JDG
South Ribble Council,http://Statistics.Data.gov.uk\Doc\Local Authority\30UN,09/11/2021,£7.38,Cash,cash handling fee @ 2.95% Royal Bank of Scotland,Refund,113640,GOVE,JDG
South Ribble Council,http://Statistics.Data.gov.uk\Doc\Local Authority\30UN,09/11/2021,£200.00,Faringto,hotel accommodation for displaced persons,Accomodat,113640,GOVE,JDG
